Cogmind - Beta 13 @@@ ROGUE MODE // 2024.04.03 @ 15:33:03 Player: Copyrite Result: Destroyed by as-61440 with Assembled Rifle Performance ------------- Evolutions (0) 0 Regions Visited (2) 400 Robots Destroyed (22) 110 Value Destroyed (266) 266 Prototype IDs (2) 40 Alien Tech Used (0) 0 Bonus (0) 0 TOTAL SCORE: 816 Bonus ------- None Cogmind --------- Core Integrity 0/250 Matter 300/300 Energy 99/100 System Corruption 0% Temperature Cool (0) Movement Core (100) Ox1 Location -10/Mines Parts ------- > --- POWER (1) -------- (None) > --- PROPULSION (2) --- (None) > --- UTILITY (2) ------ Small Storage Unit Hacking Suite > --- WEAPON (2) ------- (None) > --- INVENTORY (8) ---- Large Storage Unit Structural Scanner Improved Terrain Scanner Particle Gun Datajack Mining Laser Peak State ------------ > --- POWER ------------ Light Ion Engine > --- PROPULSION ------- Wheel Wheel > --- UTILITY ---------- Small Storage Unit Hacking Suite > --- WEAPON ----------- Small Laser Particle Gun > --- INVENTORY -------- Hover Unit Large Storage Unit Improved Terrain Scanner Seismic Detector Core Shielding Tractor Beam Light Assault Rifle Datajack [Rating: 11] Favorites ----------- Power Light Ion Engine Engine Light Ion Engine Propulsion Flight Unit Leg Aluminum Leg Wheel Wheel Flight Unit Flight Unit Utility Small Storage Unit Device Tractor Beam Storage Small Storage Unit Hackware Hacking Suite Protection Core Shielding Weapon Light Assault Rifle Energy Gun Small Laser Energy Cannon Beam Cannon Ballistic Gun Light Assault Rifle Special Weapon Mining Laser Build | -11 -10 -10 ------- Run | Yrd Mat Min Slots Evolved . | . . . Power . | . . . Propulsion . | . . . Utility . | . . . Weapon . | . . . Parts Attached 33 | 6 26 1 Power 5 | 1 3 1 Engine 5 | 1 3 1 Core . | . . . Reactor . | . . . Propulsion 10 | 2 8 . Treads . | . . . Leg 1 | . 1 . Wheel 6 | 2 4 . Hover . | . . . Flight 3 | . 3 . Utility 6 | 1 5 . Device 1 | . 1 . Storage 3 | 1 2 . Processor . | . . . Hackware 1 | . 1 . Protection 1 | . 1 . Artifact . | . . . Weapon 12 | 2 10 . Energy Gun 4 | . 4 . Energy Cannon 2 | . 2 . Ballistic Gun 2 | 2 . . Ballistic Cannon . | . . . Launcher . | . . . Special Weapon 4 | . 4 . Impact Weapon . | . . . Slashing Weapon . | . . . Piercing Weapon . | . . . Special Melee Weapon . | . . . Unidentified Prototypes . | . . . Parts Lost 10 | . 7 3 Power 4 | . 3 1 Propulsion 5 | . 3 2 Utility . | . . . Weapon 1 | . 1 . Highest Loss Streak 3 | . 3 2 To Critical Strikes . | . . . Average Slot Usage (%) 85 | . 88 67 Engine 12 | . 13 9 Leg 1 | . 1 . Wheel 11 | . 12 . Flight 12 | . 11 28 Storage 14 | . 14 14 Hackware 9 | . 8 14 Protection 4 | . 5 . Energy Gun 5 | . 5 . Energy Cannon 1 | . 2 . Ballistic Gun 8 | . 9 . Special Weapon 3 | . 3 1 Naked Turns . | . . . Heaviest Build 28 | 10 28 11 Greatest Support 26 | 20 26 8 Greatest Overweight (x) 4 | 1 4 1 Average Overweight (x) . | . . . Largest Inventory Capacity 15 | 8 15 8 Average Capacity 8 | 6 8 8 Most Carried 8 | 1 8 6 Average Carried 5 | . 5 5 Final Capacity 8 | 8 8 8 Final Carried 6 | 1 6 6 Class Distribution -------------------- 56% | Scavenger-Mutant 43% | Mutant Dominant Class ---------------- Scavenger-Mutant | -10/Materials Mutant | -10/Mines Resources | -11 -10 -10 ----------- Run | Yrd Mat Min Matter Collected 570 | 229 319 22 Remotely . | . . . Salvage Created 695 | . 695 . Parts 44 | . 44 . Haulers Intercepted . | . . . Recyclers Shooed 3 | . 3 . Parts Field Recycled . | . . . Retrieved Matter . | . . . Parts Self-Destructed . | . . . Prevented . | . . . Kills | -11 -10 -10 ------- Run | Yrd Mat Min Combat Hostiles Destroyed 7 | . 7 . Guns 4 | . 4 . Cannons 3 | . 3 . Classes Destroyed 7 | . 7 . Worker 7 | . 7 . Builder 2 | . 2 . Tunneler 1 | . 1 . Recycler 4 | . 4 . Operator 1 | . 1 . Swarmer 3 | . 3 . Grunt 4 | . 4 . Best Kill Streak 5 | . 5 . Combat Bots Only 3 | . 3 . Max Kills in Single Turn 1 | . 1 . Gunslinging . | . . . Exploded . | . . . Melee . | . . . Uniques/NPCs Destroyed . | . . . Combat | -11 -10 -10 -------- Run | Yrd Mat Min Hostile Shots Fired 107 | . 101 6 Missed 24 | . 23 1 Damage Taken 972 | . 910 62 Core 259 | . 231 28 Absorbed by Shields . | . . . Redirected to Shielding 21 | . 21 . Core Remaining (%) 100 | 100 . . Volleys Fired 101 | . 101 . Largest 2 | . 2 . Hottest 105 | . 105 . Shots Fired 160 | . 160 . Gun 116 | . 116 . Cannon 18 | . 18 . Launcher . | . . . Special 26 | . 26 . Kinetic 70 | . 70 . Thermal 90 | . 90 . Explosive . | . . . Electromagnetic . | . . . Robot Hit Streak 27 | . 27 . Robot Miss Streak 4 | . 4 . Penetration Max . | . . . Secondary Targets . | . . . Shots Hit Robots 94 | . 94 . Core Hits 36 | . 36 . Critical Kills . | . . . Critical Parts Destroyed . | . . . Critical Strikes . | . . . Melee Attacks . | . . . Impact . | . . . Slashing . | . . . Piercing . | . . . Sneak Attacks . | . . . Combat Hostiles . | . . . Follow-up Attacks . | . . . Damage Inflicted 1106 | . 1106 . Guns 838 | . 838 . Cannons 244 | . 244 . Explosions . | . . . Melee . | . . . Ramming . | . . . Kinetic 449 | . 449 . Thermal 657 | . 657 . Explosive . | . . . Electromagnetic . | . . . Impact . | . . . Slashing . | . . . Piercing . | . . . Highest Corruption . | . . . Average Corruption . | . . . Corruption Purged . | . . . Corruption Blocked . | . . . Overload Shots . | . . . Overflow Damage 5 | . 5 . Projectiles 5 | . 5 . Explosions . | . . . Melee . | . . . Knockbacks . | . . . Impact . | . . . Kinetic . | . . . Secondary . | . . . Self-Inflicted Damage . | . . . Shots . | . . . Rammed . | . . . Targets Rammed . | . . . Kicked . | . . . Crushed . | . . . Highest Temperature 302 | . 302 3 Average Temperature 74 | . 74 3 Received Heat Transfer 428 | . 408 20 Effects 3 | . 3 . Energy Bleed 1 | . 1 . Interference 2 | . 2 . Siege Activations . | . . . Robots Corrupted . | . . . Combat Hostiles . | . . . Parts Fried . | . . . Impact Corruptions . | . . . Robots Melted . | . . . Combat Hostiles . | . . . Parts Melted 2 | . 2 . Heat Transferred 1474 | . 1474 . Parts Sabotaged . | . . . Parts Stolen . | . . . Parts Stripped . | . . . Power Chain Reactions . | . . . Alert | -11 -10 -10 ------- Run | Yrd Mat Min Peak Influence 195 | . 195 58 Initial 58 | . . 58 Average 62 | . 66 54 Maximum Alert Level . | . . . Low Security (%) 100 | 100 100 100 Level 1 . | . . . Level 2 . | . . . Level 3 . | . . . Level 4 . | . . . Level 5 . | . . . High Security . | . . . Max Security . | . . . Squads Dispatched 2 | . 2 . Investigation 1 | . 1 . Extermination . | . . . Reinforcement 1 | . 1 . Assault . | . . . Garrison . | . . . Intercept . | . . . Searches Triggered . | . . . Construction Impeded . | . . . Haulers Reinforced . | . . . Active Scanning Responses . | . . . Cargo Convoy Interrupts . | . . . Stealth | -11 -10 -10 --------- Run | Yrd Mat Min Distress Signals . | . . . Communications Jammed . | . . . Distress Signals . | . . . Times Spotted 37 | . 31 6 Peak Tracking Total 6 | . 6 6 Tactical Retreats 5 | . 3 2 Traps | -11 -10 -10 ------- Run | Yrd Mat Min Traps Triggered . | . . . Indirectly . | . . . Trap Hack Attempts . | . . . Triggered . | . . . Disarmed 12 | . 12 . Reprogrammed . | . . . Reused . | . . . Traps Extracted . | . . . Installed . | . . . Triggered . | . . . Machines | -11 -10 -10 ---------- Run | Yrd Mat Min Machines Disabled 2 | . 2 . Max in Single Turn 1 | . 1 . Machines Repaired . | . . . Machines Dismantled . | . . . Machines Sabotaged . | . . . Overloaded Fab Kills . | . . . Hacking | -11 -10 -10 --------- Run | Yrd Mat Min Machines Accessed 5 | . 5 . Terminals 4 | . 4 . Fabricators . | . . . Repair Stations . | . . . Recycling Units 1 | . 1 . Scanalyzers . | . . . Garrison Access . | . . . Total Hacks 14 | . 14 . Successful 7 | . 7 . Failed 7 | . 7 . Catastrophic 1 | . 1 . Database Lockouts . | . . . Manual 2 | . 2 . Terminals 13 | . 13 . Fabricators . | . . . Repair Stations . | . . . Recycling Units 1 | . 1 . Scanalyzers . | . . . Garrison Access . | . . . Terminal Hacks 6 | . 6 . Prototype ID Bank 1 | . 1 . Branch Access Points 1 | . 1 . Unreport Threat 1 | . 1 . Locate Traps 1 | . 1 . Disarm Traps 2 | . 2 . Fabricator Hacks . | . . . Repair Station Hacks . | . . . Recycling Unit Hacks 1 | . 1 . Report Inventory 1 | . 1 . Scanalyzer . | . . . Garrison Access Hacks . | . . . Unauthorized Hacks . | . . . Terminals . | . . . Fabricators . | . . . Repair Stations . | . . . Recycling Units . | . . . Scanalyzers . | . . . Garrison Access . | . . . Data Cores Recovered 1 | . 1 . Used 1 | . 1 . Hacking Detections 4 | . 4 . Full Trace Events 4 | . 4 . Feedback Events . | . . . Feedback Blocked . | . . . Robot Schematics Acquired . | . . . Robots Built . | . . . Authchips . | . . . Time . | . . . Total Robot Build Rating . | . . . Part Schematics Acquired . | . . . Parts Built . | . . . Authchips . | . . . Time . | . . . Total Part Build Rating . | . . . Parts Repaired . | . . . Time . | . . . Parts Recycled . | . . . Recycled Matter . | . . . Retrieved Matter . | . . . Retrieved Components . | . . . Parts Scanalyzed . | . . . Part Schematics Acquired . | . . . Parts Damaged . | . . . Bothacking | -11 -10 -10 ------------ Run | Yrd Mat Min Used RIF Installer . | . . . Robots Hacked . | . . . Non-combat . | . . . Combat . | . . . Robot Hacks Applied . | . . . Relay Couplers Released . | . . . Fabnet Peak Effective % . | . . . Robots Rewired . | . . . Allies Hacked . | . . . Hacks Repelled . | . . . Allies | -11 -10 -10 -------- Run | Yrd Mat Min Total Allies . | . . . Largest Group . | . . . Highest-Rated Group . | . . . Highest-Rated Ally . | . . . Total Orders . | . . . Ally Attacks . | . . . Total Damage . | . . . Kills . | . . . Allies Corrupted . | . . . Allies Melted . | . . . Intel | -11 -10 -10 ------- Run | Yrd Mat Min Robot Analysis Total . | . . . Derelict Logs Recovered 1 | . . 1 Drone Launches . | . . . Drone Recoveries . | . . . Exploration | -11 -10 -10 ------------- Run | Yrd Mat Min Turns Passed 1324 | 42 1143 139 Spaces Moved 1184 | 41 964 179 Core 22 | 11 9 2 Treads . | . . . Legs 26 | . 26 . Wheels 437 | 30 407 . Hover . | . . . Flight 699 | . 522 177 Fastest Speed 37 | 50 37 37 Average Speed 74 | 78 75 68 Slowest Speed 260 | 100 260 120 Overloaded Moves . | . . . Propulsion Burnouts . | . . . Robots Hopped 2 | . 1 1 Cave-ins Triggered . | . . . Exploration Rate (%) 36 | 3 60 46 Regions Visited 2 Branch Regions 1 Pre-discovered Areas 1 | . . 1 Known Exits Taken 1 | . 1 . Unknown Exits Taken 1 | 1 . . Scrap Searched 1 | . . 1 Spaces Dug 22 | . 22 . Terrain Destroyed 23 | . 23 . Melee . | . . . Projectile 23 | . 23 . AOE . | . . . Terrain Rammed . | . . . Walls Destroyed . | . . . Machines Disabled . | . . . Actions | -11 -10 -10 --------- Run | Yrd Mat Min Total 1421 | 47 1179 195 Wait 63 | . 48 15 Move 1178 | 40 961 177 Hop 2 | . 1 1 Pick Up 21 | 1 20 . Fast Attach 11 | 6 5 . Attach 11 | . 10 1 Detach 7 | . 6 1 Swap 11 | . 11 . Drop 16 | . 16 . Fire 101 | . 101 . Melee . | . . . Ram . | . . . Kick . | . . . Crush . | . . . Escape Stasis . | . . . Rewire . | . . . Trap . | . . . Miscellaneous . | . . . Route ------- -11/Scrapyard -10/Materials (discovered 4 exits: [*Mat] / *Min x2 / [*Sub]) -10/Mines History --------- Turn | Location | Event 18 | -11/Scrapyard | Discovered new exit (range 16) 43 | -11/Scrapyard | Entered Materials 198 | -10/Materials | Discovered new exit (range 14) 274 | -10/Materials | Lost 3 parts (1p2n) 333 | -10/Materials | Build established: Mutant 698 | -10/Materials | Build established: Scavenger-Mutant 715 | -10/Materials | Core integrity fell below 50% 805 | -10/Materials | Identified exit to Mines 1041 | -10/Materials | Discovered new exit (range 11) 1142 | -10/Materials | Core integrity fell below 20% 1171 | -10/Materials | Lost 3 parts (1p1n1w) 1178 | -10/Materials | Discovered new exit (range 5) 1186 | -10/Materials | Entered Mines 1256 | -10/Mines | Assembled infested the area 1264 | -10/Mines | Learned Materials garrison access intel 1306 | -10/Mines | Learned location of Storage (-7) 1325 | -10/Mines | Destroyed by as-61440 with Assembled Rifle Last Messages --------------- Acquired 22 matter. K-01 Serf collects debris. ALERT: Infestation in the mines, dispatching Demolisher response squad. Acquired derelict log, extracted data. Data stored: Materials garrison access intel. Ion Engine destroyed. K-01 Serf collects debris. A derelict emerges from the shadows: "Are any of them following you? I'm here trying to lose some heat after our second raid on Storage failed. Whatever you do stay away from that place, they've tightened security following our previous successful raids." World map updated: -7/Storage. LH-MAM(g): "We scattered so the Unaware couldn't effectively use their advantage in numbers, and I suggest you do the same." LH-MAM(g) slips back into the shadows. Flight Unit destroyed. Map ----- +----------------------------------------------------+ | | | | | | | | | ?????????????????????????????????????????????????? | | ?????????????????????????????????????????????????? | | ?????????????????????????????????????????????????? | | ????????????????????????????????????????????###### | | ????????????????????????????????????????????# | | ????????????????????????????????????????????# | | ????????????????????????????????????????????# | | ????????????????????????????????????????????## | | ?????????????????????????????????????????????### | | ???????????????# ????????????????????????????### | | ??????????????# ??????????????################# | | ?????????????? ?????????????# | | ????????????? #????????????# ############### | | ????????????? #???????????# ####??????????? | | ???????????? #??????##### ##????????## | | ???????????? #????## ##???????# | | ????????????? #??## ##??????# | | ???????????????# a ### ### ##?????# | | ???????????????# ####??# ####### | | ????????????????# ##????## | | ?????????????????# ##???## | | ?????????????????###### @ ##### ###### | | ??????????????????????# =%a a ## #????? | | ?????????????????????## ! ! #????? | | ????????????????????## =%* #????? | | ????????????????????# | = ##????? | | ????????????????????# =%= ######## | | ????????????????????## * %! # | | ?????????????????????## ## !=! # | | ??????????????????????## #######%###### # | | ???????????????????????## #?????# #????# # | | ????????????????????????# #?????# #????# | | ???????????????????????## ##??#### #????### | | ???????????????????????# ###???# #??????? | | ???????????????????????# ##?????# ####??????? | | ???????????????????????## ###??????# #?????????? | | ????????????????????????## #???###### #?????????? | | ?????????????????????????# #???# #?????????? | | ?????????????????????????# #???# ######?????????? | | ?????????????????????????# #???# ####???????????? | | ?????????????????????????# ##### ###?????????? | | ?????????????????????????# ##????????? | | ?????????????????????????# #????????? | | ?????????????????????????#### ## # #????????? | | ????????????????????????????# ## ##? #????????? | | ????????????????????????????# ### ##???#????????? | +----------------------------------------------------+ Best States ------------- Heat Dissipation 25 Energy Generation 10 Energy Capacity 250 Matter Stores 300 Matter Capacity 300 Sight Range 16 Terrain Scan Density 10 Core Shielding 20 Evasion (%) 62 Offensive Hacking 10 Item Schematics ----------------- None Robot Schematics ------------------ None Fabricated ------------ Nothing Alien Tech Used ----------------- None Achievements -------------- Dynamic Key Everything Is Under Control Challenges ------------ None Game ------ Seed NuclearDataSabre Manual? 0 Play Time 00:26:05 Cumulative 3.8 hours Start 2024.04.03 @ 15:08:17 End 2024.04.03 @ 15:33:03 Sessions 1 Manual Loads 0 Difficulty Rogue Special Mode None Game No. 7 Rogue 7 Adventurer 0 Explorer 0 Win Type - Total 0 Types 0/0/0/0/0/0/0/0/0 Lore% 1 Gallery% 8 Achievement% 8 Wizard Run 0 Options --------- Layout 1 ASCII 0 Keyboard 0 Movement Numpad Keybinds 0 Fullscreen 1 Font 32/SmallcapsGlow Map View 50x35 Zoom Use 0% Tactical HUD 0 Map Filters NONE Filters NONE Steam 1 RUN: 692c1189-8312-46d5-afd1-c25858c8455e